Cogmind - Beta 9.2 @@@ ROGUE MODE // 2019.12.30 @ 01:25:04 Player: Fleshy Vegetable Bird Result: Destroyed by Enhanced Grunt with Neutron Cannon Performance ------------- Evolutions (9) 4500 Regions Visited (31) 6200 Robots Destroyed (83) 415 Value Destroyed (1328) 1328 Prototype IDs (80) 1600 Alien Tech Used (4) 800 Bonus (10983) 10983 TOTAL SCORE: 25826 Bonus ------- Triggered Max Security 1000 High Alert Combat Kills 187 Follower Combat Kills 596 Aligned with FarCom 300 Met Data Miner 300 Met Zhirov 300 Met Warlord at Base 500 MAIN.C Attacked Warlord 500 Met Warlord at Research 2000 Met MAIN.C 5000 Met Architect 300 Cogmind --------- Core Integrity 0/1600 Matter 278/300 Energy 99/100 System Corruption 15% Temperature Cool (12) Movement Core (50) Location -1/Access_0 Parts ------- > --- POWER (2) -------- (None) > --- PROPULSION (7) --- (None) > --- UTILITY (14) ----- (None) > --- WEAPON (2) ------- (None) > --- INVENTORY (4) ---- Vortex Shotgun Peak State ------------ > --- POWER ------------ Micro Fission Core Particle Reactor > --- PROPULSION ------- Improved Cesium-ion Thruster Cooled Field Propulsion Drive Q-thruster Q-thruster Electron Diverter Electron Diverter Cooled Impulse Thruster > --- UTILITY ---------- Large Storage Unit Advanced Energy Well Long-range Terrain Scanner Experimental Terrain Scan Processor Advanced Core Analyzer Experimental Armor Integrity Analyzer Advanced Reaction Control System Advanced Phase Shifter Experimental Cloaking Device Experimental Propulsion Shielding Light Regenerative Plating Improved Hacking Suite Advanced Hacking Suite Improved System Shield > --- WEAPON ----------- Sigix Broadsword > --- INVENTORY -------- Micro Fission Core Advanced Weapon Cycler Advanced ECM Suite Experimental Weapon Shielding Experimental Focal Shield Advanced Force Field Transdimensional Reconstructor Vortex Shotgun Molecular Deconstructor [Rating: 199] Favorites ----------- Power Micro Nuclear Core Engine Light Ion Engine Power Core Micro Nuclear Core Reactor Particle Reactor Propulsion Improved Flight Unit Treads Light Treads Wheel Wheel Flight Unit Improved Flight Unit Utility Hacking Suite Device Long-range Terrain Scanner Storage Medium Storage Unit Processor Experimental Terrain Scan Processor Hackware Hacking Suite Protection Experimental Propulsion Shielding Artifact Stasis Generator Weapon Power Sword Energy Gun EM Pulse Gun Energy Cannon Light EM Pulse Cannon Ballistic Gun Heavy Assault Rifle Launcher Rocket Launcher Special Weapon Molecular Deconstructor Impact Weapon Great Maul Slashing Weapon Power Sword Build | -11 -10 -10 -9 -9 -9 -8 -8 -7 -6 -6 -6 -6 -5 -5 -5 -5 -5 -5 -5 -4 -4 -4 -4 -4 -3 -3 -2 -2 -1 -1 -1 ------- Run | Scr Mat Min Mat Min Exi Min Mat Fac Fac Low Low Dat Pro Fac Was Fac Upp Upp Zhi Pro Fac Upp Upp War Pro Res Res Qua Acc Com Ac0 Slots Evolved 18 | . . . 2 . . . 2 2 2 . . . . 2 . . . . . . 2 . . . . 2 2 . 2 . . Power 1 | . . . . . . . . 1 . . . . . . . . . . . . . . . . . . . . . . . Propulsion 5 | . . . 1 . . . . 1 . . . . . 1 . . . . . . . . . . . 1 1 . . . . Utility 12 | . . . 1 . . . 2 . 2 . . . . 1 . . . . . . 2 . . . . 1 1 . 2 . . Weapon . | . . . . . . . . . . . . . . . . . . . . . . . . . . . . . . . . Parts Attached 166 | 8 5 2 13 3 2 1 7 12 19 2 . . . 13 1 4 . . 2 2 11 2 2 17 3 6 13 2 4 6 4 Power 18 | 1 . 1 2 . . . 3 2 1 . . . . 1 . . . . . . 2 . . 3 . 1 . . . 1 . Engine 8 | 1 . 1 2 . . . 3 1 . . . . . . . . . . . . . . . . . . . . . . . Core 8 | . . . . . . . . 1 1 . . . . 1 . . . . . . 2 . . 2 . . . . . 1 . Reactor 2 | . . . . . . . . . . . . . . . . . . . . . . . . 1 . 1 . . . . . Propulsion 36 | 3 2 1 4 2 . . . 3 3 . . . . 2 . . . . . . 3 . . 5 . 3 2 . 2 . 1 Treads 1 | . . . 1 . . . . . . . . . . . . . . . . . . . . . . . . . . . . Leg . | . . . . . . . . . . . . . . . . . . . . . . . . . . . . . . . . Wheel 8 | 3 2 1 2 . . . . . . . . . . . . . . . . . . . . . . . . . . . . Hover . | . . . . . . . . . . . . . . . . . . . . . . . . . . . . . . . . Flight 27 | . . . 1 2 . . . 3 3 . . . . 2 . . . . . . 3 . . 5 . 3 2 . 2 . 1 Utility 79 | 2 1 . 1 1 2 . 2 1 13 2 . . . 10 1 3 . . 2 2 6 2 1 7 . 2 10 1 2 3 2 Device 44 | . . . . . . . . . 7 2 . . . 6 1 2 . . 1 2 4 1 1 5 . 1 7 1 . 2 1 Storage 6 | 2 1 . . . 1 . . . . . . . . . . . . . . . 1 . . . . 1 . . . . . Processor 10 | . . . . . 1 . 2 . 3 . . . . 1 . 1 . . . . . . . 1 . . . . 1 . . Hackware 10 | . . . . 1 . . . 1 3 . . . . 2 . . . . 1 . . . . 1 . . . . 1 . . Protection 8 | . . . 1 . . . . . . . . . . 1 . . . . . . 1 1 . . . . 3 . . 1 . Artifact 1 | . . . . . . . . . . . . . . . . . . . . . . . . . . . . . . . 1 Weapon 33 | 2 2 . 6 . . 1 2 6 2 . . . . . . 1 . . . . . . 1 2 3 . 1 1 . 2 1 Energy Gun 8 | 2 . . 1 . . . . 2 . . . . . . . . . . . . . . . 2 . . . . . . 1 Energy Cannon 5 | . 2 . 3 . . . . . . . . . . . . . . . . . . . . . . . . . . . . Ballistic Gun 1 | . . . 1 . . . . . . . . . . . . . . . . . . . . . . . . . . . . Ballistic Cannon . | . . . . . . . . . . . . . . . . . . . . . . . . . . . . . . . . Launcher 1 | . . . 1 . . . . . . . . . . . . . . . . . . . . . . . . . . . . Special Weapon 2 | . . . . . . . . . . . . . . . . . . . . . . . . . 1 . . . . 1 . Impact Weapon 2 | . . . . . . 1 . . . . . . . . . . . . . . . . . . . . 1 . . . . Slashing Weapon 14 | . . . . . . . 2 4 2 . . . . . . 1 . . . . . . 1 . 2 . . 1 . 1 . Piercing Weapon . | . . . . . . . . . . . . . . . . . . . . . . . . . . . . . . . . Special Melee Weapon . | . . . . . . . . . . . . . . . . . . . . . . . . . . . . . . . . Unidentified Prototypes 25 | . . . 3 . . . . 1 . . . . . 1 . . . . 1 . . . . 10 1 . 4 1 1 1 1 Parts Lost 38 | . . 1 3 6 . . . . 2 . . . . . . . . . . . 1 . . . . . 1 . . 7 17 Power 6 | . . 1 1 1 . . . . . . . . . . . . . . . . . . . . . . . . . 1 2 Propulsion 12 | . . . 2 2 . . . . 1 . . . . . . . . . . . . . . . . . . . . 1 6 Utility 17 | . . . . 1 . . . . 1 . . . . . . . . . . . 1 . . . . . 1 . . 5 8 Weapon 3 | . . . . 2 . . . . . . . . . . . . . . . . . . . . . . . . . . 1 Highest Loss Streak 23 | . . 1 3 6 . . . . 2 . . . . . . . . . . . 1 . . . . . 1 . . 7 23 Average Slot Usage (%) 87 | . 100 98 94 81 50 66 56 72 92 92 93 93 93 87 88 89 94 94 93 94 92 94 89 88 89 95 99 94 93 90 22 Engine 2 | . 14 12 10 10 . . 4 3 3 . . . . . . . . . . . . . . . . . . . . . . Core 6 | . . . . . . . . 3 9 13 13 13 13 10 11 11 11 11 11 11 10 10 10 9 10 7 4 4 4 3 2 Wheel 4 | . 28 28 25 9 . . . . . . . . . . . . . . . . . . . . . . . . . . . Flight 19 | . . . . 2 22 22 18 19 26 26 26 26 26 23 23 23 23 23 23 23 20 21 21 21 21 24 29 30 28 27 6 Device 8 | . . . . . . . . . 4 12 13 13 13 10 11 11 11 11 10 11 21 17 15 13 15 13 16 17 16 11 2 Storage 9 | . 28 28 22 20 8 11 9 7 6 6 6 6 6 5 5 5 5 5 5 5 5 5 5 5 5 9 8 8 8 7 1 Processor 7 | . . . . . 8 11 11 15 13 6 6 6 6 10 5 5 5 5 5 5 5 5 5 6 10 9 8 8 11 12 6 Hackware 12 | . . . . 1 11 11 9 15 20 20 20 20 20 17 17 17 17 17 17 17 15 15 15 15 15 14 8 8 10 10 3 Protection 3 | . . . 10 9 . . . . . . . . . . 5 5 5 5 5 5 2 7 10 9 5 4 8 8 8 9 . Energy Cannon 3 | . 7 28 15 . . . . . . . . . . . . . . . . . . . . . . . . . . . . Slashing Weapon 4 | . . . . . . . . 4 6 6 6 6 6 5 5 6 11 11 11 11 10 10 5 5 5 9 7 3 4 3 . Naked Turns 6 | . . . . . . . . . . . . . . . . . . . . . . . . . . . . . . . 6 Heaviest Build 78 | 15 23 29 30 29 8 12 12 23 25 26 26 26 26 37 31 39 39 39 39 40 46 46 49 46 38 54 62 65 65 78 42 Greatest Support 79 | 26 20 20 30 20 12 12 12 24 26 26 26 26 26 43 43 43 43 43 43 43 46 46 50 58 53 66 76 76 68 79 68 Greatest Overweight (x) 21 | . 1 1 2 1 1 1 1 1 1 . . . . 2 . . . . . . . . 1 . . . . . 21 . 1 Average Overweight (x) . | . . . . . . . . . . . . . . . . . . . . . . . . . . . . . . . . Largest Inventory Capacity 10 | 8 10 10 10 10 8 8 8 8 8 8 8 8 8 8 8 8 8 8 8 8 10 10 10 10 10 10 10 10 10 10 4 Average Capacity 8 | 6 8 10 10 9 7 8 8 8 8 8 8 8 8 8 8 8 8 8 8 8 8 10 10 10 10 10 10 10 10 9 4 Most Carried 10 | 6 8 10 10 10 4 5 8 8 8 8 8 8 8 8 8 8 8 8 8 8 8 7 9 10 10 10 10 10 10 10 3 Average Carried 7 | 2 6 9 9 9 3 3 6 6 7 7 8 8 8 6 7 7 8 8 7 7 6 7 8 9 9 9 9 9 9 8 1 Final Capacity 10 | 8 10 10 10 4 8 8 8 8 8 8 8 8 8 8 8 8 8 8 8 8 10 10 10 10 10 10 10 10 10 4 4 Final Carried 10 | 6 7 9 10 4 4 5 8 6 7 8 8 8 8 8 8 8 8 8 8 8 7 7 9 10 10 9 10 10 10 3 1 Class Distribution -------------------- 22% | Hacker-Sprinter 22% | Mutant 16% | Hacker-Ninja 15% | Hacker-Scout 7% | Mechanic-Ninja 5% | Mechanic-Sprinter 4% | Hacker-Mutant 3% | Sprinter Dominant Class ---------------- Mutant | -10/Materials Mutant | -10/Mines Mutant | -9/Materials Mutant | -9/Mines Mutant | -9/Exiles Mutant | -8/Mines Sprinter | -8/Materials Hacker-Sprinter | -7/Factory Hacker-Scout | -6/Factory Hacker-Sprinter | -6/Lower Caves Hacker-Sprinter | -6/Lower Caves Hacker-Sprinter | -6/Data Miner Hacker-Sprinter | -5/Proximity Caves Hacker-Scout | -5/Factory Hacker-Scout | -5/Waste Hacker-Ninja | -5/Factory Hacker-Sprinter | -5/Upper Caves Hacker-Sprinter | -5/Upper Caves Hacker-Sprinter | -5/Zhirov Hacker-Sprinter | -4/Proximity Caves Hacker-Ninja | -4/Factory Mechanic-Sprinter | -4/Upper Caves Mechanic-Sprinter | -4/Upper Caves Mechanic-Sprinter | -4/Warlord Hacker-Sprinter | -3/Proximity Caves Hacker-Ninja | -3/Research Mechanic-Ninja | -2/Research Mechanic-Ninja | -2/Quarantine Hacker-Ninja | -1/Access Hacker-Mutant | -1/Command Mutant | -1/Access_0 Resources | -11 -10 -10 -9 -9 -9 -8 -8 -7 -6 -6 -6 -6 -5 -5 -5 -5 -5 -5 -5 -4 -4 -4 -4 -4 -3 -3 -2 -2 -1 -1 -1 ----------- Run | Scr Mat Min Mat Min Exi Min Mat Fac Fac Low Low Dat Pro Fac Was Fac Upp Upp Zhi Pro Fac Upp Upp War Pro Res Res Qua Acc Com Ac0 Matter Collected 1903 | 280 . 70 149 25 . 66 59 139 . 56 27 . . 48 . 41 76 202 . 27 49 . 74 45 . 17 85 17 321 30 . Remotely . | . . . . . . . . . . . . . . . . . . . . . . . . . . . . . . . . Salvage Created 3390 | 158 241 302 707 21 . 94 59 139 . . . . . 158 . 41 . 294 . . 49 . 18 . . 293 171 17 535 93 . Parts 164 | 15 12 7 61 . . 4 2 5 . . . . . 9 . 5 . 6 . . 2 . . . . 5 6 5 17 3 . Haulers Intercepted 13 | . . . 4 . . . 1 2 . . . . . . . . . . . . . . . . . 3 1 . 2 . . Recyclers Shooed 1 | . . . . . . . . . . . . . . . . . . . . . . . . . . . . . 1 . . Parts Field Recycled . | . . . . . . . . . . . . . . . . . . . . . . . . . . . . . . . . Retrieved Matter . | . . . . . . . . . . . . . . . . . . . . . . . . . . . . . . . . Parts Self-Destructed 24 | . . . . . . . . . . . 3 . . . . . . . . . . 8 5 8 . . . . . . . Prevented 2 | . . . . . . . . . . . . . . . . . . . . 2 . . . . . . . . . . . Kills | -11 -10 -10 -9 -9 -9 -8 -8 -7 -6 -6 -6 -6 -5 -5 -5 -5 -5 -5 -5 -4 -4 -4 -4 -4 -3 -3 -2 -2 -1 -1 -1 ------- Run | Scr Mat Min Mat Min Exi Min Mat Fac Fac Low Low Dat Pro Fac Was Fac Upp Upp Zhi Pro Fac Upp Upp War Pro Res Res Qua Acc Com Ac0 Combat Hostiles Destroyed 31 | . 4 1 15 9 . . . . . . . . . . . . . . . . . . . . . . . . 1 1 . Melee 2 | . . . . . . . . . . . . . . . . . . . . . . . . . . . . . 1 1 . Guns 6 | . 4 . 2 . . . . . . . . . . . . . . . . . . . . . . . . . . . . Cannons 8 | . . 1 7 . . . . . . . . . . . . . . . . . . . . . . . . . . . . AOE 15 | . . . 6 9 . . . . . . . . . . . . . . . . . . . . . . . . . . . Classes Destroyed 12 | 2 2 1 5 1 . . . . . . . . . . . . . . . . . . . . . . . . . 1 . Worker 11 | . . 1 1 . . 4 . 1 . . . . . 1 . 1 . . . . . . . . . 1 1 . . . . Builder 5 | . 2 . 2 . . . . . . . . . . . . . . . . . . . . . . . . 1 . . . Tunneler 6 | 4 . . . . . 2 . . . . . . . . . . . . . . . . . . . . . . . . . Hauler 13 | . . . 4 . . . 1 2 . . . . . . . . . . . . . . . . . 3 1 . 2 . . Recycler 7 | 1 . 3 . . . . . . . . . . . 1 . . . . . . . . . . . . . . 2 . . Operator 3 | . . . 1 . . . . . . . . . . . . . . . . . . . . . . . 1 . 1 . . Watcher 6 | . . . 2 . . . . . . . . . . 1 . 1 . . . . 1 . . . . . 1 . . . . Swarmer 7 | . . . 7 . . . . . . . . . . . . . . . . . . . . . . . . . . . . Grunt 11 | . 4 1 6 . . . . . . . . . . . . . . . . . . . . . . . . . . . . Sentry 3 | . . . 2 . . . . . . . . . . . . . . . . . . . . . . . . . 1 . . Hunter 1 | . . . . . . . . . . . . . . . . . . . . . . . . . . . . . . 1 . Decomposer 1 | . . . . . . . . . . . . . . . . . . . . . . . 1 . . . . . . . . Assembled 9 | . . . . 9 . . . . . . . . . . . . . . . . . . . . . . . . . . . Best Kill Streak 10 | 2 2 3 10 9 . 2 1 1 . . . . . 1 . 1 . . . . 1 . . . . 1 2 1 2 1 . Combat Bots Only 9 | . 1 1 7 9 . . . . . . . . . . . . . . . . . . . . . . . . 1 1 . Max Kills in Single Turn 3 | 2 1 2 3 3 . 1 1 1 . . . . . 1 . 1 . . . . 1 . 1 . . 1 1 1 1 1 . Gunslinging . | . . . . . . . . . . . . . . . . . . . . . . . . . . . . . . . . Exploded 3 | . . . 3 3 . . . . . . . . . . . . . . . . . . . . . . . . . . . Melee 1 | . . . . . . . . . . . . . . . . . . . . . . . . . . . . . 1 1 . Uniques/NPCs Destroyed . | . . . . . . . . . . . . . . . . . . . . . . . . . . . . . . . . Combat | -11 -10 -10 -9 -9 -9 -8 -8 -7 -6 -6 -6 -6 -5 -5 -5 -5 -5 -5 -5 -4 -4 -4 -4 -4 -3 -3 -2 -2 -1 -1 -1 -------- Run | Scr Mat Min Mat Min Exi Min Mat Fac Fac Low Low Dat Pro Fac Was Fac Upp Upp Zhi Pro Fac Upp Upp War Pro Res Res Qua Acc Com Ac0 Damage Taken 6613 | . 172 97 503 645 . . 30 . 199 . . . 178 110 . . . . . 44 209 25 34 . . . 42 195 52 1414 2664 Core 2060 | . 35 . 56 203 . . 14 . 107 . . . 36 . . . . . . 25 . . . . . . 21 19 . 129 1415 Absorbed by Shields 36 | . . . . . . . . . . . . . . . . . . . . . . . . . . . . 36 . . . Core Remaining (%) 89 | 100 . 86 . . . 35 97 100 . . . . 83 . . . . . . 97 . . . . 100 100 . 97 . . . Volleys Fired 98 | 7 26 9 43 5 . . . 3 . . . . . . . . . . . . . . . . . . . . . 4 1 Largest 2 | 2 2 2 2 1 . . . 1 . . . . . . . . . . . . . . . . . . . . . 1 1 Hottest 112 | 80 80 112 112 33 . . . 45 . . . . . . . . . . . . . . . . . . . . . . 60 Shots Fired 166 | 14 52 15 72 5 . . . 3 . . . . . . . . . . . . . . . . . . . . . 4 1 Gun 89 | 14 52 . 19 . . . . 3 . . . . . . . . . . . . . . . . . . . . . . 1 Cannon 64 | . . 15 49 . . . . . . . . . . . . . . . . . . . . . . . . . . . . Launcher 9 | . . . 4 5 . . . . . . . . . . . . . . . . . . . . . . . . . . . Special 4 | . . . . . . . . . . . . . . . . . . . . . . . . . . . . . . 4 . Kinetic 19 | . . . 19 . . . . . . . . . . . . . . . . . . . . . . . . . . . . Thermal . | . . . . . . . . . . . . . . . . . . . . . . . . . . . . . . . . Explosive 9 | . . . 4 5 . . . . . . . . . . . . . . . . . . . . . . . . . . . Electromagnetic 133 | 14 52 15 49 . . . . 3 . . . . . . . . . . . . . . . . . . . . . . . Entropic 1 | . . . . . . . . . . . . . . . . . . . . . . . . . . . . . . . 1 Robot Hit Streak 13 | 5 10 6 13 2 . . . 4 . . . . . . . . . . . . . . . . . . . . . . . Robot Miss Streak 3 | 3 3 1 3 2 . . . 3 . . . . . . . . . . . . . . . . . . . . . . . Penetration Max . | . . . . . . . . . . . . . . . . . . . . . . . . . . . . . . . . Secondary Targets . | . . . . . . . . . . . . . . . . . . . . . . . . . . . . . . . . Shots Hit Robots 192 | 9 36 10 42 2 . 7 1 16 3 2 . . . 6 . 5 . 10 . . 1 . 1 . . 11 9 1 16 3 1 Core Hits 103 | 6 11 5 28 18 . 2 1 4 . . . . . 3 . 2 . 5 . . 1 . 1 . . 3 5 1 6 1 . Critical Hits 10 | . . . . . . . 1 2 . . . . . . . . . . . . . . . . . 1 . . 5 1 . Critical Kills 4 | . . . . . . . 1 1 . . . . . . . . . . . . . . . . . . . . 2 . . Critical Parts Destroyed 6 | . . . . . . . . 1 . . . . . . . . . . . . . . . . . 1 . . 3 1 . Melee Attacks 376 | . . . . . . 7 6 31 50 10 5 . 1 53 . 17 7 13 . 3 29 3 6 . 3 27 40 7 41 15 2 Impact 16 | . . . . . . 7 4 . . . . . . . . . . . . . . . . . . . 4 1 . . . Slashing 360 | . . . . . . . 2 31 50 10 5 . 1 53 . 17 7 13 . 3 29 3 6 . 3 27 36 6 41 15 2 Piercing . | . . . . . . . . . . . . . . . . . . . . . . . . . . . . . . . . Sneak Attacks 35 | . . . . . . 5 1 6 . 1 . . . 2 . 2 . . . . . . 1 . . 6 3 1 5 2 . Combat Hostiles 1 | . . . . . . . . . . . . . . . . . . . . . . . . . . . . . . 1 . Follow-up Attacks 2 | . . . . . . . . . . . . . . . . . . . . . . . . . . 2 . . . . . Damage Inflicted 12428 | 178 702 259 1297 698 . 493 120 1090 161 203 . . . 476 . 390 . 1268 . . 51 . 99 . . 1002 776 278 2182 630 75 Guns 853 | 130 572 . 118 . . . . 33 . . . . . . . . . . . . . . . . . . . . . . . Cannons 971 | . . 259 712 . . . . . . . . . . . . . . . . . . . . . . . . . . . . Explosions 1343 | 48 130 . 467 698 . . . . . . . . . . . . . . . . . . . . . . . . . . . Melee 9261 | . . . . . . 493 120 1057 161 203 . . . 476 . 390 . 1268 . . 51 . 99 . . 1002 776 278 2182 630 75 Ramming . | . . . . . . . . . . . . . . . . . . . . . . . . . . . . . . . . Kinetic 118 | . . . 118 . . . . . . . . . . . . . . . . . . . . . . . . . . . . Thermal 329 | 48 130 . 151 . . . . . . . . . . . . . . . . . . . . . . . . . . . . Explosive 1014 | . . . 316 698 . . . . . . . . . . . . . . . . . . . . . . . . . . . Electromagnetic 1706 | 130 572 259 712 . . . . 33 . . . . . . . . . . . . . . . . . . . . . . . Impact 493 | . . . . . . 493 . . . . . . . . . . . . . . . . . . . . . . . . . Slashing 8768 | . . . . . . . 120 1057 161 203 . . . 476 . 390 . 1268 . . 51 . 99 . . 1002 776 278 2182 630 75 Piercing . | . . . . . . . . . . . . . . . . . . . . . . . . . . . . . . . . Highest Corruption 15 | . 1 1 . 3 3 3 2 . . . . . . . 6 6 6 6 6 6 . . . . . . . . . 13 15 Average Corruption 4 | . 1 1 . 3 3 3 2 . . . . . . . 6 6 6 6 6 6 . . . . . . . . . 6 13 Corruption Purged . | . . . . . . . . . . . . . . . . . . . . . . . . . . . . . . . . Effects 55 | . 1 3 . . 9 4 . . . . . . . . 1 9 1 5 2 5 . . . . . . . . . 3 12 Message Errors 14 | . . 2 . . 3 1 . . . . . . . . . 1 1 3 1 1 . . . . . . . . . . 1 Matter Fused 6 | . . . . . 2 . . . . . . . . . . 2 . . . . . . . . . . . . . 1 1 Heat Flow Errors 3 | . . . . . . . . . . . . . . . 1 . . . 1 . . . . . . . . . . . 1 Energy Discharges 10 | . 1 . . . 1 1 . . . . . . . . . 4 . 1 . 1 . . . . . . . . . 1 . Parts Rejected 1 | . . . . . . . . . . . . . . . . . . . . . . . . . . . . . . . 1 Data Loss (minor) 7 | . . . . . 3 1 . . . . . . . . . 1 . 1 . . . . . . . . . . . . 1 Data Loss (major) 3 | . . . . . . . . . . . . . . . . . . . . 2 . . . . . . . . . . 1 Misdirections 5 | . . . . . . . . . . . . . . . . . . . . . . . . . . . . . . 1 4 Targeting Errors 6 | . . 1 . . . 1 . . . . . . . . . 1 . . . 1 . . . . . . . . . . 2 Overload Shots . | . . . . . . . . . . . . . . . . . . . . . . . . . . . . . . . . Overflow Damage 2261 | . 4 17 1 3 . 212 . 306 54 123 . . . 121 . 211 . 466 . . . . . . . 119 216 . 257 151 . Projectiles 17 | . . 17 . . . . . . . . . . . . . . . . . . . . . . . . . . . . . Explosions 8 | . 4 . 1 3 . . . . . . . . . . . . . . . . . . . . . . . . . . . Melee 2236 | . . . . . . 212 . 306 54 123 . . . 121 . 211 . 466 . . . . . . . 119 216 . 257 151 . Knockbacks 3 | . . . . . . 3 . . . . . . . . . . . . . . . . . . . . . . . . . Impact 3 | . . . . . . 3 . . . . . . . . . . . . . . . . . . . . . . . . . Kinetic . | . . . . . . . . . . . . . . . . . . . . . . . . . . . . . . . . Secondary . | . . . . . . . . . . . . . . . . . . . . . . . . . . . . . . . . Self-Inflicted Damage 195 | . . . . 195 . . . . . . . . . . . . . . . . . . . . . . . . . . . Shots 5 | . . . . 5 . . . . . . . . . . . . . . . . . . . . . . . . . . . Rammed . | . . . . . . . . . . . . . . . . . . . . . . . . . . . . . . . . Targets Rammed . | . . . . . . . . . . . . . . . . . . . . . . . . . . . . . . . . Kicked . | . . . . . . . . . . . . . . . . . . . . . . . . . . . . . . . . Crushed . | . . . . . . . . . . . . . . . . . . . . . . . . . . . . . . . . Highest Temperature 277 | 72 210 82 123 16 . . . . 2 . . . . 3 277 . . . 266 . . . . . . . 23 . 3 2 150 Average Temperature 53 | 29 81 31 39 8 . . . . 1 . . . . 1 263 . . . 192 . . . . . . . 8 . 3 1 94 Received Heat Transfer 661 | . 99 45 183 40 . . 9 . . . . . . 9 . . . . . . 9 9 . . . . . 36 9 117 96 Effects 1 | . . . . . . . . . . . . . . . 1 . . . . . . . . . . . . . . . . Interference 1 | . . . . . . . . . . . . . . . 1 . . . . . . . . . . . . . . . . Siege Activations . | . . . . . . . . . . . . . . . . . . . . . . . . . . . . . . . . Robots Corrupted . | . . . . . . . . . . . . . . . . . . . . . . . . . . . . . . . . Combat Hostiles . | . . . . . . . . . . . . . . . . . . . . . . . . . . . . . . . . Parts Fried 13 | . 2 1 3 . . 7 . . . . . . . . . . . . . . . . . . . . . . . . . Impact Corruptions 8 | . . . . . . 8 . . . . . . . . . . . . . . . . . . . . . . . . . Robots Melted . | . . . . . . . . . . . . . . . . . . . . . . . . . . . . . . . . Combat Hostiles . | . . . . . . . . . . . . . . . . . . . . . . . . . . . . . . . . Parts Melted 2 | . . 1 1 . . . . . . . . . . . . . . . . . . . . . . . . . . . . Heat Transferred 400 | 50 200 . 150 . . . . . . . . . . . . . . . . . . . . . . . . . . . . Parts Sabotaged . | . . . . . . . . . . . . . . . . . . . . . . . . . . . . . . . . Parts Stolen . | . . . . . . . . . . . . . . . . . . . . . . . . . . . . . . . . Parts Stripped . | . . . . . . . . . . . . . . . . . . . . . . . . . . . . . . . . Power Chain Reactions 4 | 1 3 . . . . . . . . . . . . . . . . . . . . . . . . . . . . . . Missiles Intercepted . | . . . . . . . . . . . . . . . . . . . . . . . . . . . . . . . . Alert | -11 -10 -10 -9 -9 -9 -8 -8 -7 -6 -6 -6 -6 -5 -5 -5 -5 -5 -5 -5 -4 -4 -4 -4 -4 -3 -3 -2 -2 -1 -1 -1 ------- Run | Scr Mat Min Mat Min Exi Min Mat Fac Fac Low Low Dat Pro Fac Was Fac Upp Upp Zhi Pro Fac Upp Upp War Pro Res Res Qua Acc Com Ac0 Peak Influence 1711 | 25 161 135 656 255 . 30 96 113 485 . . . . 161 63 193 . . . . 82 . . . . 114 227 1689 1711 1562 . Average Influence 332 | 10 110 106 396 246 . 13 42 65 154 . . . . 79 58 103 . . . . 48 . . . . 55 152 1616 1554 1356 . Maximum Alert Level 5 | . . . 2 1 . . . . 2 . . . . . . . . . . . . . . . . . 1 5 5 4 . Low Security (%) 69 | 100 100 100 13 4 . 100 100 100 74 . . . . 100 100 100 . . . . 100 . . . . 100 64 . . . . Level 1 10 | . . . 45 95 . . . . 14 . . . . . . . . . . . . . . . . . 35 . . . . Level 2 5 | . . . 40 . . . . . 11 . . . . . . . . . . . . . . . . . . . . . . Level 3 . | . . . . . . . . . . . . . . . . . . . . . . . . . . . . . . 18 . Level 4 7 | . . . . . . . . . . . . . . . . . . . . . . . . . . . . . 49 81 . Level 5 4 | . . . . . . . . . . . . . . . . . . . . . . . . . . . . . 50 . . High Security . | . . . . . . . . . . . . . . . . . . . . . . . . . . . . . . . . Max Security 1 | . . . . . . . . . . . . . . . . . . . . . . . . . . . . 99 . . . Squads Dispatched 31 | . 1 1 1 . . . 2 4 1 . . . . 3 . 1 . . . . 2 . . . . 1 2 7 5 . . Investigation 9 | . 1 1 . . . . . 3 . . . . . . . . . . . . . . . . . . 2 . 2 . . Extermination 5 | . . . . . . . . . 1 . . . . 2 . . . . . . 1 . . . . . . . 1 . . Reinforcement 8 | . . . 1 . . . 2 . . . . . . 1 . 1 . . . . 1 . . . . 1 . 1 . . . Assault 8 | . . . . . . . . . . . . . . . . . . . . . . . . . . . . 6 2 . . Garrison 1 | . . . . . . . . 1 . . . . . . . . . . . . . . . . . . . . . . . Intercept . | . . . . . . . . . . . . . . . . . . . . . . . . . . . . . . . . Construction Impeded . | . . . . . . . . . . . . . . . . . . . . . . . . . . . . . . . . Haulers Reinforced 1 | . . . . . . . . . . . . . . . . . . . . . . . . . . 1 . . . . . Stealth | -11 -10 -10 -9 -9 -9 -8 -8 -7 -6 -6 -6 -6 -5 -5 -5 -5 -5 -5 -5 -4 -4 -4 -4 -4 -3 -3 -2 -2 -1 -1 -1 --------- Run | Scr Mat Min Mat Min Exi Min Mat Fac Fac Low Low Dat Pro Fac Was Fac Upp Upp Zhi Pro Fac Upp Upp War Pro Res Res Qua Acc Com Ac0 Distress Signals 21 | . 2 . 1 . . . 4 1 . 1 . . . 2 . 1 . . . . 1 . . . . . 7 . . 1 . Communications Jammed . | . . . . . . . . . . . . . . . . . . . . . . . . . . . . . . . . Distress Signals . | . . . . . . . . . . . . . . . . . . . . . . . . . . . . . . . . Times Spotted 208 | . 8 9 31 20 . . 15 3 3 1 . . 15 15 4 4 1 . . 5 5 5 2 . . 2 18 9 2 12 19 Peak Tracking Total 19 | . 3 3 6 9 . . 5 3 2 1 . . 9 5 4 2 4 . . 6 3 8 5 . . 2 11 15 2 6 19 Tactical Retreats 31 | . 1 1 3 . . . 6 1 . . . . 3 5 . . 2 . . . 1 3 1 . . . 4 . . . . Traps | -11 -10 -10 -9 -9 -9 -8 -8 -7 -6 -6 -6 -6 -5 -5 -5 -5 -5 -5 -5 -4 -4 -4 -4 -4 -3 -3 -2 -2 -1 -1 -1 ------- Run | Scr Mat Min Mat Min Exi Min Mat Fac Fac Low Low Dat Pro Fac Was Fac Upp Upp Zhi Pro Fac Upp Upp War Pro Res Res Qua Acc Com Ac0 Traps Triggered 10 | . 1 . . . . . 1 2 1 . . . . 1 . . . . . . 1 . . . . . . 2 1 . . Indirectly . | . . . . . . . . . . . . . . . . . . . . . . . . . . . . . . . . Trap Hack Attempts . | . . . . . . . . . . . . . . . . . . . . . . . . . . . . . . . . Triggered . | . . . . . . . . . . . . . . . . . . . . . . . . . . . . . . . . Disarmed . | . . . . . . . . . . . . . . . . . . . . . . . . . . . . . . . . Reprogrammed . | . . . . . . . . . . . . . . . . . . . . . . . . . . . . . . . . Reused . | . . . . . . . . . . . . . . . . . . . . . . . . . . . . . . . . Traps Extracted . | . . . . . . . . . . . . . . . . . . . . . . . . . . . . . . . . Installed . | . . . . . . . . . . . . . . . . . . . . . . . . . . . . . . . . Triggered 7 | . 1 . . . . . . . . . . . . . . . . . . 1 . . . 5 . . . . . . . Machines | -11 -10 -10 -9 -9 -9 -8 -8 -7 -6 -6 -6 -6 -5 -5 -5 -5 -5 -5 -5 -4 -4 -4 -4 -4 -3 -3 -2 -2 -1 -1 -1 ---------- Run | Scr Mat Min Mat Min Exi Min Mat Fac Fac Low Low Dat Pro Fac Was Fac Upp Upp Zhi Pro Fac Upp Upp War Pro Res Res Qua Acc Com Ac0 Machines Disabled 14 | . 1 . 5 . . . . . 1 . . . . 1 . . . . . . . . . . 1 . . 3 . 2 . Max in Single Turn 2 | . 1 . 2 . . . . . 1 . . . . 1 . . . . . . . . . . 1 . . 1 . 1 . Garrison Access 5 | . . . . . . . . 1 1 . . . . 1 . . . . . . 1 . . . . . . . 1 . . Machines Sabotaged . | . . . . . . . . . . . . . . . . . . . . . . . . . . . . . . . . Garrisons Compromised . | . . . . . . . . . . . . . . . . . . . . . . . . . . . . . . . . Overloaded Fab Kills . | . . . . . . . . . . . . . . . . . . . . . . . . . . . . . . . . Fab Network Shutdowns 2 | . . . . . . . . . 1 . . . . . . . . . . . . . . . . . . . 1 . . Hacking | -11 -10 -10 -9 -9 -9 -8 -8 -7 -6 -6 -6 -6 -5 -5 -5 -5 -5 -5 -5 -4 -4 -4 -4 -4 -3 -3 -2 -2 -1 -1 -1 --------- Run | Scr Mat Min Mat Min Exi Min Mat Fac Fac Low Low Dat Pro Fac Was Fac Upp Upp Zhi Pro Fac Upp Upp War Pro Res Res Qua Acc Com Ac0 Machines Accessed 117 | . . 1 5 . 1 . 3 10 17 2 1 3 . 16 . 9 . 1 4 . 10 1 . 6 . 5 3 . 14 5 . Terminals 67 | . . . 4 . . . 2 6 11 . . . . 9 . 8 . . . . 5 1 . . . 3 2 . 11 5 . Fabricators 12 | . . . . . . . . 2 3 . . . . 3 . . . . . . 1 . . . . 1 1 . 1 . . Repair Stations 7 | . . . . . . . . . 1 . . . . 2 . 1 . . . . 1 . . . . 1 . . 1 . . Recycling Units 1 | . . . . . . . . . 1 . . . . . . . . . . . . . . . . . . . . . . Scanalyzers 6 | . . . 1 . . . 1 1 . . . . . 1 . . . . . . 2 . . . . . . . . . . Garrison Access 5 | . . . . . . . . 1 1 . . . . 1 . . . . . . 1 . . . . . . . 1 . . Total Hacks 362 | . . 1 18 . 1 . 9 30 50 2 1 22 . 58 . 31 . 1 17 . 37 3 . 12 . 14 10 . 35 10 . Successful 247 | . . 1 12 . 1 . 4 16 39 2 1 22 . 36 . 15 . 1 17 . 28 2 . 12 . 9 2 . 21 6 . Failed 115 | . . . 6 . . . 5 14 11 . . . . 22 . 16 . . . . 9 1 . . . 5 8 . 14 4 . Catastrophic 16 | . . . 2 . . . 1 2 1 . . . . 1 . 1 . . . . 2 . . . . 1 2 . 3 . . Database Lockouts . | . . . . . . . . . . . . . . . . . . . . . . . . . . . . . . . . Manual 195 | . . . 14 . 2 . 7 16 32 . . . . 29 . 28 . . . . 14 3 . 1 1 9 6 . 27 6 . Terminals 206 | . . . 14 . . . 7 17 37 . . . . 32 . 29 . . . . 13 3 . . . 9 6 . 29 10 . Fabricators 43 | . . . . . . . . 6 8 . . . . 10 . . . . . . 10 . . . . 3 4 . 2 . . Repair Stations 20 | . . . . . . . . . 2 . . . . 8 . 2 . . . . 3 . . . . 2 . . 3 . . Recycling Units 2 | . . . . . . . . . 2 . . . . . . . . . . . . . . . . . . . . . . Scanalyzers 23 | . . . 4 . . . 2 4 . . . . . 5 . . . . . . 8 . . . . . . . . . . Garrison Access 11 | . . . . . . . . 3 1 . . . . 3 . . . . . . 3 . . . . . . . 1 . . Terminal Hacks 112 | . . 1 4 . 1 . 1 3 12 2 1 22 . 8 . 6 . 1 17 . 6 2 . 12 . 4 . . 6 3 . Record 21 | . . . . . . . . . . . . 6 . . . . . . 5 . . . . 10 . . . . . . . Part Schematic 26 | . . . . . . . . 1 6 . . 6 . 1 . 2 . . 4 . 1 2 . . . 3 . . . . . Robot Schematic 7 | . . . . . . . . . . . . 7 . . . . . . . . . . . . . . . . . . . Robot Analysis 5 | . . . . . . . . . . . . . . . . . . . 4 . . . . . . . . . 1 . . Prototype ID Bank 13 | . . . 1 . . . . 1 1 . . 3 . . . 1 . . 4 . . . . . . . . . 2 . . Open Door 8 | . . 1 . . . . . . . 2 1 . . . . . . 1 . . . . . 2 . . . . . 1 . Level Access Points 1 | . . . . . . . . . . . . . . . . . . . . . . . . . . 1 . . . . . Branch Access Points 6 | . . . 1 . . . . . 1 . . . . 1 . 1 . . . . 1 . . . . . . . 1 . . Machine Index 1 | . . . . . . . . . 1 . . . . . . . . . . . . . . . . . . . . . . Terminal Index 7 | . . . . . . . 1 1 1 . . . . 1 . 1 . . . . 1 . . . . . . . 1 . . Fabricator Index 3 | . . . . . . . . . . . . . . 1 . 1 . . . . 1 . . . . . . . . . . Scanalyzer Index 1 | . . . 1 . . . . . . . . . . . . . . . . . . . . . . . . . . . . Locate Traps 1 | . . . . . . . . . . . . . . 1 . . . . . . . . . . . . . . . . . Recall Extermination 5 | . . . . . . . . . 1 . . . . 2 . . . . . . 1 . . . . . . . 1 . . Recall Reinforcements 1 | . . . . . . . . . . . . . . . . . . . . . 1 . . . . . . . . . . Hauler Manifests 1 | . . . 1 . . . . . . . . . . . . . . . . . . . . . . . . . . . . Registered Prototypes 1 | . . . . . . . . . 1 . . . . . . . . . . . . . . . . . . . . . . Zone Layout 1 | . . . . . . . . . . . . . . 1 . . . . . . . . . . . . . . . . . EX-Prototype ID Bank 1 | . . . . . 1 . . . . . . . . . . . . . . . . . . . . . . . . . . Disengage Seal 2 | . . . . . . . . . . . . . . . . . . . . . . . . . . . . . . 2 . Fabricator Hacks 31 | . . . . . . . . 3 8 . . . . 7 . . . . . . 8 . . . . 1 2 . 2 . . Network Status 1 | . . . . . . . . . . . . . . 1 . . . . . . . . . . . . . . . . . Load Schematic 17 | . . . . . . . . 2 4 . . . . 4 . . . . . . 4 . . . . 1 1 . 1 . . Build 13 | . . . . . . . . 1 4 . . . . 2 . . . . . . 4 . . . . . 1 . 1 . . Repair Station Hacks 13 | . . . . . . . . . 2 . . . . 5 . 1 . . . . 2 . . . . 2 . . 1 . . Scan Component 8 | . . . . . . . . . 1 . . . . 3 . 1 . . . . 1 . . . . 1 . . 1 . . Repair 5 | . . . . . . . . . 1 . . . . 2 . . . . . . 1 . . . . 1 . . . . . Recycling Unit Hacks 2 | . . . . . . . . . 2 . . . . . . . . . . . . . . . . . . . . . . Process 1 | . . . . . . . . . 1 . . . . . . . . . . . . . . . . . . . . . . Retrieve Matter 1 | . . . . . . . . . 1 . . . . . . . . . . . . . . . . . . . . . . Scanalyzer 22 | . . . 4 . . . 2 4 . . . . . 5 . . . . . . 7 . . . . . . . . . . Insert Component 8 | . . . 2 . . . 1 1 . . . . . 2 . . . . . . 2 . . . . . . . . . . Analyze 14 | . . . 2 . . . 1 3 . . . . . 3 . . . . . . 5 . . . . . . . . . . Garrison Access Hacks 5 | . . . . . . . . 1 1 . . . . 1 . . . . . . 1 . . . . . . . 1 . . Seal Access 5 | . . . . . . . . 1 1 . . . . 1 . . . . . . 1 . . . . . . . 1 . . Unauthorized Hacks 149 | . . . 10 . . . 4 12 28 . . . . 25 . 21 . . . . 9 . . . . 4 . . 27 9 . Terminals 61 | . . . 4 . . . 1 5 14 . . . . 9 . 8 . . . . 4 . . . . 2 . . 11 3 . Track 7 | . . . 1 . . . . . 4 . . . . . . 1 . . . . . . . . . . . . . 1 . Assimilate 5 | . . . . . . . . . . . . . . 2 . 2 . . . . 1 . . . . . . . . . . Botnet 47 | . . . 2 . . . 1 5 10 . . . . 7 . 5 . . . . 3 . . . . 2 . . 11 1 . Disrupt 2 | . . . 1 . . . . . . . . . . . . . . . . . . . . . . . . . . 1 . Fabricators . | . . . . . . . . . . . . . . . . . . . . . . . . . . . . . . . . Repair Stations . | . . . . . . . . . . . . . . . . . . . . . . . . . . . . . . . . Recycling Units . | . . . . . . . . . . . . . . . . . . . . . . . . . . . . . . . . Scanalyzers . | . . . . . . . . . . . . . . . . . . . . . . . . . . . . . . . . Garrison Access . | . . . . . . . . . . . . . . . . . . . . . . . . . . . . . . . . Data Cores Recovered 1 | . . . . . . . . . . . . . . . . . . . . . . . . . . . . . 1 . . Used . | . . . . . . . . . . . . . . . . . . . . . . . . . . . . . . . . Hacking Detections 80 | . . . 5 . . . 2 9 13 . . . . 13 . 9 . . . . 6 . . . . 4 3 . 13 3 . Full Trace Events 6 | . . . . . . . . 3 . . . . . . . . . . . . . . . . . . 2 . 1 . . Feedback Events 1 | . . . . . . . . . . . . . . . . . . . . . . . . . . . 1 . . . . Hackware Fried 1 | . . . . . . . . . . . . . . . . . . . . . . . . . . . 1 . . . . Feedback Blocked . | . . . . . . . . . . . . . . . . . . . . . . . . . . . . . . . . Robot Schematics Acquired 7 | . . . . . . . . . . . . 7 . . . . . . . . . . . . . . . . . . . Robots Built . | . . . . . . . . . . . . . . . . . . . . . . . . . . . . . . . . Matter . | . . . . . . . . . . . . . . . . . . . . . . . . . . . . . . . . Time . | . . . . . . . . . . . . . . . . . . . . . . . . . . . . . . . . Total Robot Build Rating . | . . . . . . . . . . . . . . . . . . . . . . . . . . . . . . . . Part Schematics Acquired 34 | . . . 2 . . . 1 2 6 . . 6 . 3 . 2 . . 4 . 3 2 . . . 3 . . . . . Parts Built 15 | . . . . . . . . 1 5 . . . . 2 . . . . . . 4 . . . . . 2 . 1 . . Matter 2696 | . . . . . . . . 186 895 . . . . 475 . . . . . . 599 . . . . . 256 . 285 . . Time 993 | . . . . . . . . 49 398 . . . . 123 . . . . . . 309 . . . . . 64 . 50 . . Total Part Build Rating 73 | . . . . . . . . 2 22 . . . . 10 . . . . . . 18 . . . . . 16 . 5 . . Parts Repaired 5 | . . . . . . . . . 1 . . . . 2 . . . . . . 1 . . . . 1 . . . . . Time 228 | . . . . . . . . . 61 . . . . 88 . . . . . . 35 . . . . 44 . . . . . Parts Recycled . | . . . . . . . . . . . . . . . . . . . . . . . . . . . . . . . . Recycled Matter 14 | . . . . . . . . . 14 . . . . . . . . . . . . . . . . . . . . . . Retrieved Matter 14 | . . . . . . . . . 14 . . . . . . . . . . . . . . . . . . . . . . Retrieved Components . | . . . . . . . . . . . . . . . . . . . . . . . . . . . . . . . . Parts Scanalyzed 8 | . . . 2 . . . 1 1 . . . . . 2 . . . . . . 2 . . . . . . . . . . Part Schematics Acquired 8 | . . . 2 . . . 1 1 . . . . . 2 . . . . . . 2 . . . . . . . . . . Parts Damaged 1 | . . . . . . . . 1 . . . . . . . . . . . . . . . . . . . . . . . Bothacking | -11 -10 -10 -9 -9 -9 -8 -8 -7 -6 -6 -6 -6 -5 -5 -5 -5 -5 -5 -5 -4 -4 -4 -4 -4 -3 -3 -2 -2 -1 -1 -1 ------------ Run | Scr Mat Min Mat Min Exi Min Mat Fac Fac Low Low Dat Pro Fac Was Fac Upp Upp Zhi Pro Fac Upp Upp War Pro Res Res Qua Acc Com Ac0 Used RIF Installer . | . . . . . . . . . . . . . . . . . . . . . . . . . . . . . . . . Robots Hacked . | . . . . . . . . . . . . . . . . . . . . . . . . . . . . . . . . Non-combat . | . . . . . . . . . . . . . . . . . . . . . . . . . . . . . . . . Combat . | . . . . . . . . . . . . . . . . . . . . . . . . . . . . . . . . Robot Hacks Applied . | . . . . . . . . . . . . . . . . . . . . . . . . . . . . . . . . Relay Couplers Released . | . . . . . . . . . . . . . . . . . . . . . . . . . . . . . . . . Robots Rewired . | . . . . . . . . . . . . . . . . . . . . . . . . . . . . . . . . Allies Hacked . | . . . . . . . . . . . . . . . . . . . . . . . . . . . . . . . . Hacks Repelled . | . . . . . . . . . . . . . . . . . . . . . . . . . . . . . . . . Allies | -11 -10 -10 -9 -9 -9 -8 -8 -7 -6 -6 -6 -6 -5 -5 -5 -5 -5 -5 -5 -4 -4 -4 -4 -4 -3 -3 -2 -2 -1 -1 -1 -------- Run | Scr Mat Min Mat Min Exi Min Mat Fac Fac Low Low Dat Pro Fac Was Fac Upp Upp Zhi Pro Fac Upp Upp War Pro Res Res Qua Acc Com Ac0 Total Allies 54 | . . 3 . . . . . . . . . . 1 1 . 1 . . . . . . . . . . . . . 48 . Largest Group 33 | . . 3 3 . . . . . . . . . 1 1 . 1 1 . . . . . . . . . . . . 33 . Highest-Rated Group 1240 | . . 40 40 . . . . . . . . . 94 10 . 10 10 . . . . . . . . . . . . 1240 . Highest-Rated Ally 94 | . . 16 16 . . . . . . . . . 94 10 . 10 10 . . . . . . . . . . . . 90 . Total Orders 5 | . . . . . . . . . 4 . . . . 1 . . . . . . . . . . . . . . . . . GOTO 4 | . . . . . . . . . 3 . . . . 1 . . . . . . . . . . . . . . . . . FOLLOW 1 | . . . . . . . . . 1 . . . . . . . . . . . . . . . . . . . . . . Ally Attacks 253 | . . 20 42 . . . . . . . . . 8 . . . . . . . . . . . . . . . . 183 . Total Damage 5358 | . . 237 400 . . . . . . . . . 234 . . . . . . . . . . . . . . . . 4487 . Kills 35 | . . 4 9 . . . . . . . . . . . . . . . . . . . . . . . . . . 22 . Allies Corrupted . | . . . . . . . . . . . . . . . . . . . . . . . . . . . . . . . . Allies Melted . | . . . . . . . . . . . . . . . . . . . . . . . . . . . . . . . . Intel | -11 -10 -10 -9 -9 -9 -8 -8 -7 -6 -6 -6 -6 -5 -5 -5 -5 -5 -5 -5 -4 -4 -4 -4 -4 -3 -3 -2 -2 -1 -1 -1 ------- Run | Scr Mat Min Mat Min Exi Min Mat Fac Fac Low Low Dat Pro Fac Was Fac Upp Upp Zhi Pro Fac Upp Upp War Pro Res Res Qua Acc Com Ac0 Robot Analysis Total 5 | . . . . . . . . . . . . . . . . . . . 4 . . . . . . . . . 1 . . Derelict Logs Recovered 12 | . . 2 . 1 . . . . . . 2 . 2 . . . . 2 . . . 1 2 . . . . . . . . Drone Launches 10 | . . . . . . . . . 2 . . . . 6 . . . . . . . . . . . . . . 2 . . Drone Recoveries . | . . . . . . . . . . . . . . . . . . . . . . . . . . . . . . . . Decoded 0b10 Intel 14 | . . . . . . . . . . . . . . 14 . . . . . . . . . . . . . . . . . Traps 2 | . . . . . . . . . . . . . . 2 . . . . . . . . . . . . . . . . . Items 9 | . . . . . . . . . . . . . . 9 . . . . . . . . . . . . . . . . . Machines 1 | . . . . . . . . . . . . . . 1 . . . . . . . . . . . . . . . . . Guards 2 | . . . . . . . . . . . . . . 2 . . . . . . . . . . . . . . . . . Exploration | -11 -10 -10 -9 -9 -9 -8 -8 -7 -6 -6 -6 -6 -5 -5 -5 -5 -5 -5 -5 -4 -4 -4 -4 -4 -3 -3 -2 -2 -1 -1 -1 ------------- Run | Scr Mat Min Mat Min Exi Min Mat Fac Fac Low Low Dat Pro Fac Was Fac Upp Upp Zhi Pro Fac Upp Upp War Pro Res Res Qua Acc Com Ac0 Turns Passed 9316 | 98 250 607 676 116 339 150 266 607 938 128 183 22 178 787 22 221 103 147 58 101 560 155 208 265 246 288 431 105 644 292 125 Spaces Moved 14324 | 65 180 597 472 88 359 186 463 815 1476 369 592 83 426 1172 69 383 294 365 161 279 502 373 342 601 291 511 677 136 1196 493 308 Core 114 | 8 . . . . . . . . . . . . . . . . . . . . . . . . . . . . 1 . 105 Treads 146 | . . . 96 50 . . . . . . . . . . . . . . . . . . . . . . . . . . . Legs . | . . . . . . . . . . . . . . . . . . . . . . . . . . . . . . . . Wheels 1210 | 57 180 597 376 . . . . . . . . . . . . . . . . . . . . . . . . . . . . Hover . | . . . . . . . . . . . . . . . . . . . . . . . . . . . . . . . . Flight 12854 | . . . . 38 359 186 463 815 1476 369 592 83 426 1172 69 383 294 365 161 279 502 373 342 601 291 511 677 136 1195 493 203 Fastest Speed 18 | 50 80 80 80 32 32 32 32 26 26 26 26 26 26 26 27 27 27 27 27 27 27 27 24 27 27 21 18 18 21 18 20 Average Speed 35 | 81 81 88 100 116 76 62 36 46 26 26 26 26 26 27 27 27 27 27 27 27 27 27 27 27 28 23 20 20 21 20 35 Slowest Speed 1100 | 90 90 90 180 180 105 105 105 102 96 26 26 26 26 166 27 27 27 27 27 27 28 27 98 27 30 24 22 21 1100 28 100 Overloaded Moves 12 | . . . . . . . . . . . . . . . . . . . . . . . 12 . . . . . . . . Propulsion Burnouts . | . . . . . . . . . . . . . . . . . . . . . . . . . . . . . . . . Robots Hopped 43 | . . . . . . . 4 3 8 1 . . 2 15 . . . . . . 3 . . . 1 3 . . . . 3 Cave-ins Triggered . | . . . . . . . . . . . . . . . . . . . . . . . . . . . . . . . . Teleports 1 | . . . . . . . . . . . . . . . . . . . . . . . . . . . . . . 1 . Exploration Rate (%) 46 | 4 34 99 43 27 70 49 48 24 35 53 70 69 92 47 87 10 43 54 62 53 14 66 50 80 51 20 31 18 32 23 22 Regions Visited 31 Branch Regions 19 Pre-discovered Areas 9 | . . 1 . . . . . . . . 1 1 . . . . . 1 3 . . . . 2 . . . . . . . Known Exits Taken 9 | . . . 1 . . . . . 1 . . . . . . 1 1 . . 1 1 . . . 1 1 . . 1 . . Unknown Exits Taken 20 | 1 1 1 . 1 1 1 1 1 . 1 1 1 1 . . . . 1 1 . . 1 1 1 . . 1 1 . 1 . Scrap Searched 21 | . . 1 . 1 . 1 . . . 3 3 . . . . . 3 3 . 4 . 1 1 . . . . . . . . Spaces Dug 227 | . . . . . . . 3 13 46 4 5 . 1 42 . 9 5 . . 2 24 3 5 . 2 7 23 3 23 7 . Terrain Destroyed 367 | 2 8 . 75 55 . . 3 13 46 4 5 . 1 42 . 9 5 . . 2 24 3 5 . 2 7 23 3 23 7 . Melee 227 | . . . . . . . 3 13 46 4 5 . 1 42 . 9 5 . . 2 24 3 5 . 2 7 23 3 23 7 . Projectile . | . . . . . . . . . . . . . . . . . . . . . . . . . . . . . . . . AOE 140 | 2 8 . 75 55 . . . . . . . . . . . . . . . . . . . . . . . . . . . Actions | -11 -10 -10 -9 -9 -9 -8 -8 -7 -6 -6 -6 -6 -5 -5 -5 -5 -5 -5 -5 -4 -4 -4 -4 -4 -3 -3 -2 -2 -1 -1 -1 --------- Run | Scr Mat Min Mat Min Exi Min Mat Fac Fac Low Low Dat Pro Fac Was Fac Upp Upp Zhi Pro Fac Upp Upp War Pro Res Res Qua Acc Com Ac0 Total 17765 | 96 231 660 599 97 423 204 546 988 1935 384 613 82 488 1548 71 476 308 397 177 300 885 421 445 707 451 645 916 202 1509 645 316 Wait 2516 | . 10 38 55 . 61 9 55 101 363 2 13 . 64 304 . 67 10 21 . 16 337 44 94 52 143 98 170 15 256 118 . Move 14209 | 64 179 596 471 87 358 185 454 808 1460 366 591 82 421 1142 68 382 293 364 160 278 495 372 341 600 288 504 676 135 1195 492 302 Hop 42 | . . . . . . . 4 3 7 1 . . 2 15 . . . . . . 3 . . . 1 3 . . . . 3 Pick Up 186 | 15 6 9 11 . 2 2 11 6 22 2 2 . . 11 1 4 . 1 8 1 8 . 1 20 6 8 13 6 7 2 1 Fast Attach . | . . . . . . . . . . . . . . . . . . . . . . . . . . . . . . . . Attach 95 | 7 . 1 4 3 2 1 5 10 6 2 . . . 6 . 2 . . 2 . 7 . . 8 3 6 5 2 3 6 4 Detach 11 | . . . . . . . 3 3 . 1 . . . . . . . . . . 1 . 1 . 1 . . . . . 1 Swap 73 | 1 5 1 9 . . . 2 2 13 . . . . 7 1 2 . . 1 2 4 2 2 9 . . 8 . 1 1 . Drop 128 | 2 5 6 6 2 . . 6 3 13 . 2 . . 7 1 3 . 1 6 1 5 . . 18 6 5 9 7 5 7 2 Fire 98 | 7 26 9 43 5 . . . 3 . . . . . . . . . . . . . . . . . . . . . 4 1 Melee 354 | . . . . . . 7 6 31 50 10 5 . 1 53 . 16 5 10 . 2 25 3 6 . 3 21 35 7 41 15 2 Ram . | . . . . . . . . . . . . . . . . . . . . . . . . . . . . . . . . Kick . | . . . . . . . . . . . . . . . . . . . . . . . . . . . . . . . . Crush . | . . . . . . . . . . . . . . . . . . . . . . . . . . . . . . . . Escape Stasis 48 | . . . . . . . . 18 . . . . . . . . . . . . . . . . . . . 30 . . . Rewire . | . . . . . . . . . . . . . . . . . . . . . . . . . . . . . . . . Trap . | . . . . . . . . . . . . . . . . . . . . . . . . . . . . . . . . Miscellaneous 5 | . . . . . . . . . 1 . . . . 3 . . . . . . . . . . . . . . 1 . . Route ------- -11/Scrapyard -10/Materials (discovered 2 exits: *Mat / *Min) -10/Mines (discovered 2 exits: *Mat x2) -9/Materials (discovered 3 exits: *Min / *Sto x2) -9/Mines -9/Exiles -8/Mines -8/Materials -7/Factory -6/Factory (discovered 3 exits: *Fac / *Low x2) -6/Lower Caves -6/Lower Caves -6/Data Miner -5/Proximity Caves -5/Factory (discovered 5 exits: Fac / *Upp x2 / Ext x2) -5/Waste -5/Factory (discovered 4 exits: *Upp x2 / Ext x2) -5/Upper Caves -5/Upper Caves (discovered 2 exits: *Fac / *Zhi) -5/Zhirov -4/Proximity Caves -4/Factory (discovered 5 exits: *Res x2 / *Upp x2 / Arm) -4/Upper Caves -4/Upper Caves -4/Warlord -3/Proximity Caves -3/Research (discovered 3 exits: *Res x3) -2/Research (discovered 2 exits: Acc / [*Qua]) -2/Quarantine -1/Access (discovered 2 exits: [Sur] / *Com) -1/Command (discovered 2 exits: [Sur] / [*Ac0]) -1/Access_0 History --------- Turn | Location | Event 3 | -11/Scrapyard | Discovered new exit (range 16) 99 | -11/Scrapyard | Entered Materials 241 | -10/Materials | Discovered new exit (range 16) 300 | -10/Materials | Build established: Mutant 311 | -10/Materials | Discovered new exit (range 7) 349 | -10/Materials | Entered Mines 352 | -10/Mines | Assisted by bots powering up and referring to "LRC-V3" 398 | -10/Mines | Discovered new exit (range 7) 463 | -10/Mines | Received a Rocket Launcher from a helpful Derelict 647 | -10/Mines | Met a Derelict shopkeep closing up shop 738 | -10/Mines | Learned Materials terminal intel 739 | -10/Mines | Learned location of Zion (-7) 743 | -10/Mines | Discovered new exit (range 5) 956 | -10/Mines | Entered Materials 956 | -9/Materials | Accompanied by 3 allies 956 | -9/Materials | Evolved 2 slots: Propulsion x1, Utility x1 957 | -9/Materials | Loaded intel: 12 terminal locations 1033 | -9/Materials | Discovered new exit (range 15) 1123 | -9/Materials | Identified exit to Mines 1123 | -9/Materials | Identified exit to Storage 1434 | -9/Materials | Lost 3 parts (1p2n) 1480 | -9/Materials | Destroyed 7 combat bots 1632 | -9/Materials | Entered Mines 1702 | -9/Mines | Assembled infested the area 1707 | -9/Mines | Assisted by a Guerilla fighting off Assembled 1737 | -9/Mines | Core integrity fell below 50% 1747 | -9/Mines | Deemed a non-threat by the Exiles lab entrance 1747 | -9/Mines | Discovered new exit (range 5) 1748 | -9/Mines | Entered Exiles 1750 | -9/Exiles | Destroyed 9 combat bots 1756 | -9/Exiles | Met 8R-AWN 1762 | -9/Exiles | Met EX-HEX 1767 | -9/Exiles | Lost 6 parts (1p2n1u2w) 1773 | -9/Exiles | Met EX-DEC 1807 | -9/Exiles | Met EX-BIN 1930 | -9/Exiles | Aligned with FarCom system 1931 | -9/Exiles | Given EX-Vault access code 1958 | -9/Exiles | Opened EX-Vault 1969 | -9/Exiles | Found Cloak of Protection 1992 | -9/Exiles | Warned to stay clear of 0b10 Research branches 2079 | -9/Exiles | Discovered new exit (range 10) 2087 | -9/Exiles | Left Exiles lab with Cloak of Protection 2087 | -9/Exiles | Entered Mines 2233 | -8/Mines | Discovered new exit (range 10) 2237 | -8/Mines | Entered Materials 2237 | -8/Materials | Evolved 2 slots: Utility x2 2460 | -8/Materials | Discovered new exit (range 8) 2503 | -8/Materials | Entered Factory 2503 | -7/Factory | Evolved 2 slots: Power x1, Propulsion x1 2626 | -7/Factory | Garrison activated, responded to threat 2717 | -7/Factory | Build established: Hacker-Mutant 2970 | -7/Factory | Discovered new exit (range 16) 3053 | -7/Factory | Fabricated Imp. Flight Unit? 3059 | -7/Factory | Build established: Hacker-Sprinter 3110 | -7/Factory | Entered another Factory area 3110 | -6/Factory | Evolved 2 slots: Utility x2 3150 | -6/Factory | Identified exit to Lower Caves 3295 | -6/Factory | Repaired Lrn. Terrain Scanner? 3417 | -6/Factory | Fabricated Imp. Cesium-ion Thruster (x1) 3605 | -6/Factory | Fabricated Mic. Nuclear Core (x2) 3617 | -6/Factory | Discovered new exit (range 20) 3712 | -6/Factory | Build established: Hacker-Scout 3792 | -6/Factory | Fabricated Exp. Terrain Scan Processor (x1) 3805 | -6/Factory | Local fabrication network quarantined 3892 | -6/Factory | Fabricated Imp. Hacking Suite (x1) 4048 | -6/Factory | Entered Lower Caves 4125 | -6/Lower Caves | Discovered new exit (range 19) 4141 | -6/Lower Caves | Spotted B-75 Beast 4176 | -6/Lower Caves | Entered another Lower Caves area 4216 | -6/Lower Caves | Learned 12 Factory zone layouts 4314 | -6/Lower Caves | Discovered new exit (range 15) 4359 | -6/Lower Caves | Entered Data Miner 4359 | -6/Data Miner | Discovered new exit (range 6) 4362 | -6/Data Miner | Build established: Hacker-Sprinter 4364 | -6/Data Miner | Met Data Miner 4371 | -6/Data Miner | Learned location of Section 7 (-2) 4371 | -6/Data Miner | Acquired the access code to Warlord's prototype stash 4374 | -6/Data Miner | Received God Mode back door access code from Data Miner 4381 | -6/Data Miner | Entered Proximity Caves 4510 | -5/Proximity Caves | Learned location of 1 exit from Upper Caves 4543 | -5/Proximity Caves | Discovered new exit (range 18) 4556 | -5/Proximity Caves | Attracted the attention of an 0b10 checkpoint 4556 | -5/Proximity Caves | Learned Factory emergency access door positions 4559 | -5/Proximity Caves | Entered Factory 4559 | -5/Factory | Evolved 2 slots: Propulsion x1, Utility x1 4560 | -5/Factory | Identified exit to Extension 4560 | -5/Factory | Identified exit to Factory 4688 | -5/Factory | Discovered exit to Extension (range 7) 4821 | -5/Factory | Repaired Mic. Nuclear Core? 4878 | -5/Factory | Repaired Lrn. Terrain Scanner? 4985 | -5/Factory | Identified exit to Upper Caves 5081 | -5/Factory | Fabricated Imp. Hacking Suite (x1) 5206 | -5/Factory | Fabricated Lgt. Regenerative Plating? 5217 | -5/Factory | Build established: Hacker-Scout 5346 | -5/Factory | Sucked down chute 5346 | -5/Factory | Entered Waste 5346 | -5/Waste | Met up with 1 ally sucked down the chute earlier 5350 | -5/Waste | Spotted C-40 Crusher 5353 | -5/Waste | Spotted C-40 Crusher 5354 | -5/Waste | Spotted C-40 Crusher 5360 | -5/Waste | Spotted C-40 Crusher 5361 | -5/Waste | EMP discharged 5363 | -5/Waste | Spotted C-40 Crusher 5364 | -5/Waste | Discovered new exit (range 14) 5368 | -5/Waste | Entered Factory 5589 | -5/Factory | Entered Upper Caves 5589 | -5/Upper Caves | Accompanied by 1 ally 5590 | -5/Upper Caves | Identified exit to Upper Caves 5692 | -5/Upper Caves | Entered another Upper Caves area 5692 | -5/Upper Caves | Discovered exit to Factory (range 13) 5777 | -5/Upper Caves | Learned location of Armory (-4) 5779 | -5/Upper Caves | Learned 12 Factory zone layouts 5836 | -5/Upper Caves | Discovered new exit (range 14) 5839 | -5/Upper Caves | Entered Zhirov 5839 | -5/Zhirov | Discovered new exit (range 3) 5844 | -5/Zhirov | Met Zhirov 5850 | -5/Zhirov | Learned location of Quarantine (-2) 5850 | -5/Zhirov | Learned location of Testing (-3) 5850 | -5/Zhirov | Learned location of Command (-1) 5854 | -5/Zhirov | Zhirov requested help retrieving the SGEMP Prototype 5860 | -5/Zhirov | Found Alien Artifact 5861 | -5/Zhirov | Identified Integrated Dissipator 5861 | -5/Zhirov | Installed Integrated Dissipator, increased core heat dissipation (+2%) 5884 | -5/Zhirov | Found Alien Artifact 5897 | -5/Zhirov | Entered Proximity Caves 5904 | -4/Proximity Caves | Build established: Hacker-Sprinter 5982 | -4/Proximity Caves | Discovered exit to Factory (range 22) 5998 | -4/Proximity Caves | Entered Factory 5998 | -4/Factory | Evolved 2 slots: Utility x2 5999 | -4/Factory | Identified exit to Research 6011 | -4/Factory | Identified exit to Upper Caves 6011 | -4/Factory | Identified exit to Armory 6100 | -4/Factory | Repaired Imp. Cesium-ion Thruster 6284 | -4/Factory | Fabricated Exp. Propulsion Shielding (x1) 6383 | -4/Factory | Build established: Hacker-Ninja 6398 | -4/Factory | Fabricated Mic. Fission Core (x2) 6454 | -4/Factory | Fabricated Lrg. Storage Unit (x1) 6558 | -4/Factory | Entered Upper Caves 6563 | -4/Upper Caves | Attracted the attention of an 0b10 checkpoint 6569 | -4/Upper Caves | Learned Research terminal intel 6694 | -4/Upper Caves | Discovered new exit (range 15) 6713 | -4/Upper Caves | Entered another Upper Caves area 6763 | -4/Upper Caves | Spotted B-86 Titan 6849 | -4/Upper Caves | Learned Research terminal intel 6863 | -4/Upper Caves | Discovered new exit (range 24) 6867 | -4/Upper Caves | Learned 4 Research zone layouts 6921 | -4/Upper Caves | Entered Warlord 6933 | -4/Warlord | Discovered new exit (range 24) 6981 | -4/Warlord | System corruption cleaned by Quarantine Array 7010 | -4/Warlord | Visited the Vortex Lab 7011 | -4/Warlord | Found Prototype Energy Gun 7012 | -4/Warlord | Identified Vortex Shotgun 7014 | -4/Warlord | Found Prototype Energy Gun 7015 | -4/Warlord | Identified Vortex Rail 7018 | -4/Warlord | Found Vortex Shotgun 7028 | -4/Warlord | Warlord's base attacked by MAIN.C 7039 | -4/Warlord | Learned 4 Armory zone layouts 7039 | -4/Warlord | Learned 4 Armory zone layouts 7039 | -4/Warlord | Learned 4 Quarantine zone layouts 7039 | -4/Warlord | Learned Armory fabricator intel 7039 | -4/Warlord | Learned Research scanalyzer intel 7039 | -4/Warlord | Learned Research garrison access intel 7076 | -4/Warlord | Met Warlord 7078 | -4/Warlord | Opened Warlord's prototype stash 7083 | -4/Warlord | Found Prototype Device 7084 | -4/Warlord | Identified Exp. Cloaking Device 7095 | -4/Warlord | Found Prototype Hackware 7096 | -4/Warlord | Identified System Mapper 7101 | -4/Warlord | Found Prototype Processor 7103 | -4/Warlord | Found Prototype Device 7104 | -4/Warlord | Identified Exp. Focal Shield 7107 | -4/Warlord | Identified Exp. Armor Integrity Analyzer 7113 | -4/Warlord | Found Prototype Reactor 7115 | -4/Warlord | Identified Vortex Chain Reactor 7178 | -4/Warlord | Opened side exit 7186 | -4/Warlord | Entered Proximity Caves 7375 | -3/Proximity Caves | Discovered exit to Research (range 15) 7384 | -3/Proximity Caves | Build established: Hacker-Sprinter 7400 | -3/Proximity Caves | Acquired the password to a Derelict Tinkerer's latest research 7406 | -3/Proximity Caves | Found Prototype Special Weapon 7407 | -3/Proximity Caves | Identified Molecular Deconstructor 7432 | -3/Proximity Caves | Entered Research 7432 | -3/Research | Evolved 2 slots: Propulsion x1, Utility x1 7434 | -3/Research | Loaded intel: 19 terminal locations 7435 | -3/Research | Loaded intel: 6 scanalyzer locations 7436 | -3/Research | Loaded intel: 4 garrison access locations 7457 | -3/Research | Identified exit to Research 7545 | -3/Research | Repaired Lrn. Terrain Scanner 7720 | -3/Research | Entered another Research area 7720 | -2/Research | Warlord forces began assault on 0b10 7720 | -2/Research | Evolved 2 slots: Propulsion x1, Utility x1 7721 | -2/Research | Loaded intel: 19 terminal locations 7749 | -2/Research | Met up with Warlord 7787 | -2/Research | Spotted B-90 Cyclops 7790 | -2/Research | System Mapper fried by hacking feedback 7830 | -2/Research | Research machine network offline 7854 | -2/Research | Fabricated Adv. Weapon Cycler (x2) 8051 | -2/Research | Discovered new exit (range 24) 8078 | -2/Research | Borebot progress halted 8092 | -2/Research | Borebot progress halted 8122 | -2/Research | Discovered new exit (range 15) 8151 | -2/Research | Entered Quarantine 8152 | -2/Quarantine | Maximum security lockdown engaged 8159 | -2/Quarantine | Found Alien Slashing Weapon 8160 | -2/Quarantine | Identified Sigix Broadsword 8221 | -2/Quarantine | Discovered new exit (range 14) 8256 | -2/Quarantine | Entered Access 8256 | -1/Access | Evolved 2 slots: Utility x2 8356 | -1/Access | Local fabrication network quarantined 8359 | -1/Access | Fabricated Exp. Weapon Shielding (x1) 8378 | -1/Access | Incoming investigation squad redirected 8401 | -1/Access | Discovered new exit (range 22) 8537 | -1/Access | First assault squad dispatched 8563 | -1/Access | Incoming assault squad redirected 8843 | -1/Access | Identified exit to Command 8861 | -1/Access | Build established: Hacker-Ninja 8900 | -1/Access | Entered Command 8928 | -1/Command | Disengaged cave seal 8929 | -1/Command | Discovered new exit (range 21) 8940 | -1/Command | Disengaged cave seal 9113 | -1/Command | Spotted M Guard 9113 | -1/Command | Spotted M Guard 9117 | -1/Command | Spotted Combat Programmer 9117 | -1/Command | Spotted Combat Programmer 9123 | -1/Command | Met MAIN.C 9125 | -1/Command | 0b10 Conduit disabled 9157 | -1/Command | Spotted B-99 Colossus 9178 | -1/Command | System corruption reached 10% 9189 | -1/Command | Identified Transdimensional Reconstructor 9189 | -1/Command | Warped through subspace to slip node 9189 | -1/Command | Discovered new exit (range 4) 9192 | -1/Command | Entered Access_0 9193 | -1/Access_0 | Met Architect 9257 | -1/Access_0 | A6 warped into view 9274 | -1/Access_0 | Core integrity fell below 50% 9306 | -1/Access_0 | Found Alien Artifact 9307 | -1/Access_0 | Identified Stasis Generator 9309 | -1/Access_0 | Lost 23 parts (3p7n12u1w) 9312 | -1/Access_0 | Core integrity fell below 20% 9317 | -1/Access_0 | Destroyed by Enhanced Grunt with Neutron Cannon Last Messages --------------- 09275_ Exp. Focal Shield destroyed. 09278_ Penetrated by Quantum Shear. 09278_ Imp. System Shield destroyed. 09278_ Exp. Armor Integrity Analyzer destroyed. 09290_ System corrupted: Matter fused (-7). 09297_ Quantum Shear penetrates Wall. 09297_ Penetrated by Quantum Shear. 09297_ System corrupted: Vortex Shotgun targeting data glitched. 09299_ Quantum Shear penetrates Wall. 09299_ Penetrated by Quantum Shear. 09301_ Workstation disabled. 09304_ Penetrated by Quantum Shear. 09305_ System corrupted: Substantial component data lost. 09306_ Acquired Alien Artifact. 09307_ Identified Stasis Generator. 09308_ Quantum Shear penetrates Workstation. 09309_ Dropped Stasis Generator. 09311_ Penetrated by Quantum Shear. 09311_ Adv. Core Analyzer destroyed. 09315_ Penetrated by Quantum Shear. Map ----- +----------------------------------------------------+ | ?????????????????????????????????????????????????? | | ?????????????????????????????????????????????????? | | ?????????????????????????????????????????????????? | | ?????????????????????????????????????????????????? | | ?????????????????????????????????????????????????? | | ?????????????????????????????????????????????????? | | ?????????????????????????????????????????????????? | | ?????????????????????????????????????????????????? | | ?????????????????????????????????????????????????? | | ?????????????????????????????????????????????????? | | ?????????????????????????????????????????????????? | | ?????????????????????????????????????????????????? | | ?????????????????????????????????????????????????? | | ?????????????????????????????????????????????????? | | ??????????????????????????????????????##?????????? | | ??????????????????????#####????????###"#?????????? | | ??????????????????????# ????????#" "????????# | | ??????????????????????# g ?????????"! ""#?????? | | ?????????????????????## g ??????###" #????? | | ????????????????????## g#??????# "" ##???? | | ????????????????????# #??????# " #???# | | ???????????????????## ########"" #?## | | ???????????????????# ## | | ???????????????????# | | ???????????????????### #####"### | | ?????????????????????# @ #????### # | | ?????????????????????# ##?????# ### # | | ?????????????????????# #??????# #" #???? | | ?????????????????????# #??????## ### #??## | | ????????????????????# #???????# #?# ##?## | | ???????????????????# ###???????## ?## #### | | ??????????????????# #???????????# ??# ## | | ??????????????????# ????????????###?#" | | ?????????????????? ????????????????#" | | ?????????????????# ?????????????????### ### | | ?????????????????## ???????????????????## #?# | | ??????????????????###?????????????????????## ##?## | | ???????????????????????????????????????????###???# | | ?????????????????????????????????????????????????? | | ?????????????????????????????????????????????????? | | ?????????????????????????????????????????????????? | | ?????????????????????????????????????????????????? | | ?????????????????????????????????????????????????? | | ?????????????????????????????????????????????????? | | ?????????????????????????????????????????????????? | | ?????????????????????????????????????????????????? | | ?????????????????????????????????????????????????? | | ?????????????????????????????????????????????????? | | ?????????????????????????????????????????????????? | | ?????????????????????????????????????????????????? | +----------------------------------------------------+ Best States ------------- Heat Dissipation 72 Energy Generation 36 Energy Capacity 1210 Matter Stores 300 Matter Capacity 300 Sight Range 16 Terrain Scan Range 24 Terrain Scan Density 1010 ECM Strength 2 Cloak Strength 5 Power Amplification 20 EM Shielding 2 Armor Coverage 150 Resistance: KI 30 Propulsion Shielding 90 Weapon Shielding 90 Phase Shifting 15 Evasion (%) 95 Targeting Accuracy 8 Melee Accuracy 10 Core Analysis 10 Armor Integrity Analysis 90 Recoil Reduction 1 Offensive Hacking 34 Defensive Hacking 22 Item Schematics ----------------- Imp. Flight Unit | -9/Materials | Scanalyzed Hacking Suite | -9/Materials | Scanalyzed Imp. ECM Suite | -8/Materials | Scanalyzed Lrn. Terrain Scanner | -7/Factory | Scanalyzed Adv. Melee Analysis Suite | -7/Factory | Hacked Imp. Force Field | -6/Factory | Hacked Imp. Cesium-ion Thruster | -6/Factory | Hacked Exp. Terrain Scan Processor | -6/Factory | Hacked Mic. Nuclear Core | -6/Factory | Hacked Imp. Hacking Suite | -6/Factory | Hacked Lrg. Storage Unit | -6/Factory | Hacked Combat Drone Bay | -6/Data Miner | Free Lgt. Regenerative Plating | -6/Data Miner | Free Exp. Sensor Array | -6/Data Miner | Free Cloaking Device | -6/Data Miner | Free Plasma Sword | -6/Data Miner | Free Kinetic Spear | -6/Data Miner | Free Imp. Force Booster | -5/Factory | Hacked Imp. Maneuvering Thrusters | -5/Factory | Scanalyzed Power Amplifier | -5/Factory | Scanalyzed Exp. Propulsion Shielding | -5/Factory | Hacked Force Lance | -5/Factory | Hacked Assault Drone Bay | -5/Zhirov | Free Exp. Heat Sink | -5/Zhirov | Free Exp. Optical Array | -5/Zhirov | Free Imp. Arc Thrower | -5/Zhirov | Free Adv. Energy Well | -4/Factory | Scanalyzed Mic. Fission Core | -4/Factory | Hacked Adv. Focal Shield | -4/Factory | Scanalyzed Exp. Terrain Scanner | -4/Upper Caves | Hacked Force Booster | -4/Upper Caves | Hacked Adv. Weapon Cycler | -3/Research | Hacked Exp. Weapon Shielding | -3/Research | Hacked Q-thruster | -3/Research | Hacked Robot Schematics ------------------ S-27 Virus | -6/Data Miner | Free G-50 Soldier | -6/Data Miner | Free G-67 Veteran | -6/Data Miner | Free L-41 Fighter | -6/Data Miner | Free H-66 Slayer | -6/Data Miner | Free P-70 Sage | -6/Data Miner | Free I-36 Angel | -6/Data Miner | Free Fabricated ------------ Imp. Flight Unit | x1 | -7/Factory Imp. Cesium-ion Thruster | x1 | -6/Factory Mic. Nuclear Core | x2 | -6/Factory Exp. Terrain Scan Processor | x1 | -6/Factory Imp. Hacking Suite | x1 | -6/Factory Imp. Hacking Suite | x1 | -5/Factory Lgt. Regenerative Plating | x1 | -5/Factory Exp. Propulsion Shielding | x1 | -4/Factory Mic. Fission Core | x2 | -4/Factory Lrg. Storage Unit | x1 | -4/Factory Adv. Weapon Cycler | x2 | -2/Research Exp. Weapon Shielding | x1 | -1/Access Alien Tech Used ----------------- Integrated Dissipator Sigix Broadsword Transdimensional Reconstructor Stasis Generator Achievements -------------- Behind The Curtain Challenges ------------ None Game ------ Seed AlloyTractorActivator Manual? 0 Play Time 03:01:26 Cumulative 295.7 hours Start 2019.12.29 @ 20:55:02 End 2019.12.30 @ 01:25:04 Sessions 7 Manual Loads 0 Difficulty Rogue Special Mode None Game No. 332 Rogue 332 Adventurer 0 Explorer 0 Win Type - Total 5 Types 2/1/1/1/0/0/0 Lore% 68 Gallery% 86 Achievement% 65 Wizard Run 0 Options --------- ASCII 0 Keyboard 0 Movement Numpad Keybinds 0 Fullscreen 1 Font 16/Terminus Map View 75x55 Tactical HUD 1 Map Filters NONE Filters NONE Steam 1 RUN: 8b362fc7-4ecd-4cb9-9c20-0680f9a9f007